[Event "Titled Tuesday Blitz May 24 Early 2022"]
[White "Lauridsen, Jesper Morch"]
[Black "Vusatiuk, Vladimir"]
[WhiteFideId "1401890"]
[BlackFideId "14118610"]
[WhiteElo "2239"]
[BlackElo "2157"]
[Result "1-0"]
[Round "02"]
[TimeControl "180+1"]
[Date "2022.05.25"]
[WhiteClock "0:00:59"]
[BlackClock "0:00:47"]

1. e4 {[%clk 0:03:00]}  c5 {[%clk 0:02:59]} 2. Nf3 {[%clk 0:03:00]}  Nc6 {[%clk 0:03:00]} 3. d4 {[%clk 0:03:00]}  cxd4 {[%clk 0:03:01]} 4. Nxd4 {[%clk 0:03:00]}  Nf6 {[%clk 0:03:01]} 5. Nc3 {[%clk 0:03:00]}  e5 {[%clk 0:03:01]} 6. Ndb5 {[%clk 0:03:00]}  Bc5 {[%clk 0:03:02]} 7. Be3 {[%clk 0:02:51]}  Bxe3 {[%clk 0:02:58]} 8. Nd6+ {[%clk 0:02:39]}  Kf8 {[%clk 0:02:57]} 9. fxe3 {[%clk 0:02:35]}  g6 {[%clk 0:02:42]} 10. Bc4 {[%clk 0:02:34]}  Kg7 {[%clk 0:02:40]} 11. Nxf7 {[%clk 0:02:27]}  Qb6 {[%clk 0:02:40]} 12. Nxh8 {[%clk 0:02:21]}  Qxb2 {[%clk 0:02:29]} 13. O-O {[%clk 0:01:44]}  Qxc3 {[%clk 0:02:26]} 14. Qf3 {[%clk 0:01:43]}  Qxc4 {[%clk 0:01:10]} 15. Qxf6+ {[%clk 0:01:41]}  Kh6 {[%clk 0:01:11]} 16. Nf7+ {[%clk 0:01:38]}  Qxf7 {[%clk 0:01:11]} 17. Qxf7 {[%clk 0:01:38]}  d6 {[%clk 0:01:12]} 18. Qf8+ {[%clk 0:01:35]}  Kh5 {[%clk 0:01:11]} 19. Rf3 {[%clk 0:01:27]}  Rb8 {[%clk 0:01:11]} 20. Qg7 {[%clk 0:01:18]}  h6 {[%clk 0:01:09]} 21. Raf1 {[%clk 0:01:14]}  Be6 {[%clk 0:00:59]} 22. Qf6 {[%clk 0:01:12]}  Bg4 {[%clk 0:00:55]} 23. h3 {[%clk 0:01:04]}  Bd7 {[%clk 0:00:46]} 24. g4+ {[%clk 0:01:02]}  Bxg4 {[%clk 0:00:45]} 25. hxg4+ {[%clk 0:01:01]}  Kxg4 {[%clk 0:00:46]} 26. Qxg6+ {[%clk 0:01:00]}  Kh4 {[%clk 0:00:47]} 27. Qg3+ {[%clk 0:00:59]}  Kh5 {[%clk 0:00:47]} 28. Rf5# {[%clk 0:00:59]} 1-0


[Site "https://www.chess.com"]

[Event "Titled Tuesday Blitz May 24 Early 2022"]
[White "Leschinsky, Gary"]
[Black "Shuvalova, Polina"]
[WhiteFideId "30951321"]
[BlackFideId "24171760"]
[WhiteElo "1782"]
[BlackElo "2355"]
[Result "1-0"]
[Round "02"]
[TimeControl "180+1"]
[Date "2022.05.25"]
[WhiteClock "0:00:08"]
[BlackClock "0:00:01"]

1. d4 {[%clk 0:03:00]}  Nf6 {[%clk 0:02:55]} 2. c4 {[%clk 0:03:01]}  e6 {[%clk 0:02:47]} 3. Nc3 {[%clk 0:03:00]}  Bb4 {[%clk 0:02:40]} 4. f3 {[%clk 0:02:59]}  Nh5 {[%clk 0:02:17]} 5. Nh3 {[%clk 0:02:58]}  f5 {[%clk 0:02:14]} 6. a3 {[%clk 0:02:56]}  Bxc3+ {[%clk 0:02:14]} 7. bxc3 {[%clk 0:02:57]}  O-O {[%clk 0:02:12]} 8. Bg5 {[%clk 0:02:54]}  Qe8 {[%clk 0:02:09]} 9. g4 {[%clk 0:02:52]}  fxg4 {[%clk 0:02:04]} 10. fxg4 {[%clk 0:02:52]}  Nf6 {[%clk 0:02:04]} 11. Qd3 {[%clk 0:02:43]}  d6 {[%clk 0:01:46]} 12. O-O-O {[%clk 0:02:17]}  e5 {[%clk 0:01:41]} 13. Nf2 {[%clk 0:02:07]}  Bd7 {[%clk 0:01:31]} 14. Bg2 {[%clk 0:01:59]}  Nc6 {[%clk 0:01:29]} 15. e3 {[%clk 0:01:56]}  Na5 {[%clk 0:01:27]} 16. h4 {[%clk 0:01:41]}  Ba4 {[%clk 0:01:15]} 17. Bxf6 {[%clk 0:01:40]}  Rxf6 {[%clk 0:01:14]} 18. Ne4 {[%clk 0:01:39]}  Rf8 {[%clk 0:01:10]} 19. Ng5 {[%clk 0:01:37]}  g6 {[%clk 0:00:50]} 20. Bd5+ {[%clk 0:01:27]}  Kh8 {[%clk 0:00:30]} 21. h5 {[%clk 0:01:26]}  c6 {[%clk 0:00:21]} 22. hxg6 {[%clk 0:01:03]}  cxd5 {[%clk 0:00:14]} 23. g7+ {[%clk 0:00:58]}  Kxg7 {[%clk 0:00:14]} 24. Qxh7+ {[%clk 0:00:38]}  Kf6 {[%clk 0:00:14]} 25. Rh6+ {[%clk 0:00:39]}  Kxg5 {[%clk 0:00:13]} 26. Rh5+ {[%clk 0:00:38]}  Kxg4 {[%clk 0:00:10]} 27. Qg7+ {[%clk 0:00:24]}  Kf3 {[%clk 0:00:08]} 28. Rh3+ {[%clk 0:00:23]}  Ke2 {[%clk 0:00:04]} 29. Qg4+ {[%clk 0:00:18]}  Kf2 {[%clk 0:00:03]} 30. Rd2+ {[%clk 0:00:08]}  Kf1 {[%clk 0:00:01]} 31. Qe2+ {[%clk 0:00:08]}  Kg1 {[%clk 0:00:01]} 32. Qg2# {[%clk 0:00:08]} 1-0


[Site "https://www.chess.com"]

[Event "Titled Tuesday Blitz May 24 Early 2022"]
[White "Liyanage, Ranindu Dilshan"]
[Black "Bortnyk, Olexandr"]
[WhiteFideId "9915834"]
[BlackFideId "14120828"]
[WhiteElo "1858"]
[BlackElo "2723"]
[Result "0-1"]
[Round "02"]
[TimeControl "180+1"]
[Date "2022.05.24"]
[WhiteClock "0:00:31"]
[BlackClock "0:01:06"]

1. e4 {[%clk 0:03:00]}  Nf6 {[%clk 0:02:58]} 2. e5 {[%clk 0:03:00]}  Nd5 {[%clk 0:02:58]} 3. d4 {[%clk 0:03:00]}  d6 {[%clk 0:02:58]} 4. Nf3 {[%clk 0:03:01]}  dxe5 {[%clk 0:02:58]} 5. Nxe5 {[%clk 0:03:02]}  c6 {[%clk 0:02:58]} 6. Bd3 {[%clk 0:03:01]}  Nd7 {[%clk 0:02:58]} 7. a3 {[%clk 0:02:53]}  Nxe5 {[%clk 0:02:56]} 8. dxe5 {[%clk 0:02:54]}  g6 {[%clk 0:02:56]} 9. O-O {[%clk 0:02:53]}  Bg7 {[%clk 0:02:56]} 10. Re1 {[%clk 0:02:53]}  Qc7 {[%clk 0:02:55]} 11. Qe2 {[%clk 0:02:52]}  O-O {[%clk 0:02:55]} 12. c4 {[%clk 0:02:48]}  Nb6 {[%clk 0:02:55]} 13. b4 {[%clk 0:02:48]}  Be6 {[%clk 0:02:52]} 14. Nc3 {[%clk 0:02:14]}  Rfd8 {[%clk 0:02:49]} 15. c5 {[%clk 0:02:08]}  Qxe5 {[%clk 0:02:37]} 16. Qxe5 {[%clk 0:01:44]}  Bxe5 {[%clk 0:02:38]} 17. Rxe5 {[%clk 0:01:44]}  Rxd3 {[%clk 0:02:39]} 18. cxb6 {[%clk 0:01:40]}  Rxc3 {[%clk 0:02:39]} 19. bxa7 {[%clk 0:01:35]}  Rxa7 {[%clk 0:02:40]} 20. Re3 {[%clk 0:01:36]}  Rc2 {[%clk 0:02:34]} 21. Rd3 {[%clk 0:01:35]}  Ra8 {[%clk 0:02:27]} 22. Bf4 {[%clk 0:01:30]}  Bd5 {[%clk 0:02:15]} 23. Re1 {[%clk 0:01:26]}  Ra2 {[%clk 0:02:04]} 24. h4 {[%clk 0:01:21]}  e6 {[%clk 0:02:02]} 25. Ree3 {[%clk 0:01:20]}  f6 {[%clk 0:02:01]} 26. Rc3 {[%clk 0:00:54]}  b5 {[%clk 0:01:47]} 27. Bd6 {[%clk 0:00:52]}  Kf7 {[%clk 0:01:42]} 28. Bc5 {[%clk 0:00:52]}  e5 {[%clk 0:01:42]} 29. Rcd3 {[%clk 0:00:52]}  Ke6 {[%clk 0:01:32]} 30. Kh2 {[%clk 0:00:52]}  h5 {[%clk 0:01:21]} 31. Kg3 {[%clk 0:00:50]}  Kf5 {[%clk 0:01:19]} 32. Kh2 {[%clk 0:00:44]}  e4 {[%clk 0:01:09]} 33. Rc3 {[%clk 0:00:33]}  Rxf2 {[%clk 0:01:08]} 34. Rxe4 {[%clk 0:00:31]}  Rxg2+ {[%clk 0:01:08]} 35. Kxg2 {[%clk 0:00:32]}  Bxe4+ {[%clk 0:01:08]} 36. Kg3 {[%clk 0:00:33]}  g5 {[%clk 0:01:06]} 37. Rc1 {[%clk 0:00:31]}  Rxa3+ {[%clk 0:01:06]} 0-1


[Site "https://www.chess.com"]

[Event "Titled Tuesday Blitz May 24 Early 2022"]
[White "Lopez, Henry"]
[Black "Samaganova, Aleksandra"]
[WhiteFideId "5203830"]
[BlackFideId "13800221"]
[WhiteElo "2177"]
[BlackElo "1889"]
[Result "1-0"]
[Round "02"]
[TimeControl "180+1"]
[Date "2022.05.25"]
[WhiteClock "0:02:03"]
[BlackClock "0:00:54"]

1. d4 {[%clk 0:02:56]}  Nf6 {[%clk 0:02:58]} 2. Nf3 {[%clk 0:02:55]}  e6 {[%clk 0:02:58]} 3. c4 {[%clk 0:02:55]}  b6 {[%clk 0:02:58]} 4. a3 {[%clk 0:02:54]}  Bb7 {[%clk 0:02:59]} 5. Nc3 {[%clk 0:02:54]}  d5 {[%clk 0:02:59]} 6. cxd5 {[%clk 0:02:54]}  Nxd5 {[%clk 0:02:59]} 7. Qc2 {[%clk 0:02:53]}  Be7 {[%clk 0:02:57]} 8. e4 {[%clk 0:02:53]}  Nxc3 {[%clk 0:02:57]} 9. bxc3 {[%clk 0:02:53]}  O-O {[%clk 0:02:58]} 10. Bd3 {[%clk 0:02:53]}  c5 {[%clk 0:02:58]} 11. O-O {[%clk 0:02:53]}  cxd4 {[%clk 0:02:58]} 12. cxd4 {[%clk 0:02:52]}  Nc6 {[%clk 0:02:58]} 13. Bb2 {[%clk 0:02:52]}  Rc8 {[%clk 0:02:56]} 14. Qe2 {[%clk 0:02:51]}  Na5 {[%clk 0:02:48]} 15. Rac1 {[%clk 0:02:47]}  Rxc1 {[%clk 0:02:27]} 16. Rxc1 {[%clk 0:02:45]}  Qd6 {[%clk 0:02:26]} 17. d5 {[%clk 0:02:32]}  Rc8 {[%clk 0:02:17]} 18. Rd1 {[%clk 0:02:31]}  exd5 {[%clk 0:02:03]} 19. e5 {[%clk 0:02:30]}  Qh6 {[%clk 0:01:56]} 20. Nd4 {[%clk 0:02:29]}  Nc4 {[%clk 0:01:45]} 21. Bc1 {[%clk 0:02:28]}  Bg5 {[%clk 0:01:40]} 22. Nf5 {[%clk 0:02:23]}  Bxc1 {[%clk 0:01:06]} 23. Nxh6+ {[%clk 0:02:20]}  Bxh6 {[%clk 0:01:07]} 24. e6 {[%clk 0:02:19]}  fxe6 {[%clk 0:01:02]} 25. Qxe6+ {[%clk 0:02:18]}  Kh8 {[%clk 0:01:02]} 26. Qd7 {[%clk 0:02:14]}  Ba6 {[%clk 0:00:54]} 27. Bxc4 {[%clk 0:02:03]} 1-0


[Site "https://www.chess.com"]

[Event "Titled Tuesday Blitz May 24 Early 2022"]
[White "Maksimenko, Viktor"]
[Black "Oganian, Miran"]
[WhiteFideId "13710478"]
[BlackFideId "4122488"]
[WhiteElo "2269"]
[BlackElo "2357"]
[Result "1-0"]
[Round "02"]
[TimeControl "180+1"]
[Date "2022.05.25"]
[WhiteClock "0:01:26"]
[BlackClock "0:01:09"]

1. d4 {[%clk 0:03:00]}  e6 {[%clk 0:03:00]} 2. c4 {[%clk 0:03:01]}  d5 {[%clk 0:02:59]} 3. Nf3 {[%clk 0:02:59]}  a6 {[%clk 0:02:59]} 4. g3 {[%clk 0:02:55]}  dxc4 {[%clk 0:02:59]} 5. Bg2 {[%clk 0:02:56]}  b5 {[%clk 0:02:59]} 6. Ne5 {[%clk 0:02:44]}  Ra7 {[%clk 0:02:59]} 7. a4 {[%clk 0:02:41]}  Bb7 {[%clk 0:02:58]} 8. e4 {[%clk 0:02:36]}  Ra8 {[%clk 0:02:54]} 9. O-O {[%clk 0:02:18]}  Nf6 {[%clk 0:02:54]} 10. Nc3 {[%clk 0:02:14]}  b4 {[%clk 0:02:52]} 11. Na2 {[%clk 0:02:12]}  Bxe4 {[%clk 0:02:52]} 12. Bxe4 {[%clk 0:02:11]}  Nxe4 {[%clk 0:02:53]} 13. Qf3 {[%clk 0:02:11]}  f5 {[%clk 0:02:53]} 14. Re1 {[%clk 0:02:06]}  Qd5 {[%clk 0:02:40]} 15. Qh5+ {[%clk 0:02:00]}  g6 {[%clk 0:02:39]} 16. Nxg6 {[%clk 0:02:00]}  Nf6 {[%clk 0:02:38]} 17. Qh4 {[%clk 0:01:57]}  hxg6 {[%clk 0:02:26]} 18. Qxf6 {[%clk 0:01:43]}  Rh7 {[%clk 0:02:05]} 19. Qxg6+ {[%clk 0:01:39]}  Rf7 {[%clk 0:02:05]} 20. Rxe6+ {[%clk 0:01:40]}  Be7 {[%clk 0:02:05]} 21. Bg5 {[%clk 0:01:40]}  Nc6 {[%clk 0:01:53]} 22. Rae1 {[%clk 0:01:39]}  Kf8 {[%clk 0:01:12]} 23. Bh6+ {[%clk 0:01:26]}  Ke8 {[%clk 0:01:11]} 24. Qg8+ {[%clk 0:01:27]}  Kd7 {[%clk 0:01:11]} 25. Qxf7 {[%clk 0:01:25]}  Re8 {[%clk 0:01:09]} 26. Rxe7+ {[%clk 0:01:25]}  Nxe7 {[%clk 0:01:09]} 27. Rxe7+ {[%clk 0:01:25]}  Kc6 {[%clk 0:01:09]} 28. Qxd5+ {[%clk 0:01:25]}  Kxd5 {[%clk 0:01:09]} 29. Nxb4+ {[%clk 0:01:26]}  Kxd4 {[%clk 0:01:09]} 30. Rxe8 {[%clk 0:01:26]} 1-0


[Site "https://www.chess.com"]

[Event "Titled Tuesday Blitz May 24 Early 2022"]
[White "Manukian, Artak"]
[Black "Sovetbekova, Nurai"]
[WhiteFideId "13301373"]
[BlackFideId "13801910"]
[WhiteElo "2498"]
[BlackElo "1660"]
[Result "1-0"]
[Round "02"]
[TimeControl "180+1"]
[Date "2022.05.25"]
[WhiteClock "0:00:13"]
[BlackClock "0:00:01"]

1. e4 {[%clk 0:03:00]}  c5 {[%clk 0:02:59]} 2. Nf3 {[%clk 0:02:59]}  d6 {[%clk 0:02:59]} 3. Bb5+ {[%clk 0:02:58]}  Nd7 {[%clk 0:02:59]} 4. O-O {[%clk 0:02:56]}  Nf6 {[%clk 0:02:59]} 5. Re1 {[%clk 0:02:56]}  a6 {[%clk 0:02:58]} 6. Bd3 {[%clk 0:02:56]}  g6 {[%clk 0:02:54]} 7. a4 {[%clk 0:02:53]}  Bg7 {[%clk 0:02:52]} 8. c3 {[%clk 0:02:53]}  O-O {[%clk 0:02:50]} 9. Bc2 {[%clk 0:02:53]}  c4 {[%clk 0:02:39]} 10. b3 {[%clk 0:02:51]}  cxb3 {[%clk 0:02:31]} 11. Bxb3 {[%clk 0:02:50]}  Nc5 {[%clk 0:02:31]} 12. Bc2 {[%clk 0:02:47]}  b6 {[%clk 0:01:59]} 13. d4 {[%clk 0:02:47]}  Ncd7 {[%clk 0:01:59]} 14. e5 {[%clk 0:02:45]}  dxe5 {[%clk 0:01:49]} 15. dxe5 {[%clk 0:02:45]}  Ng4 {[%clk 0:01:50]} 16. e6 {[%clk 0:02:45]}  fxe6 {[%clk 0:01:44]} 17. h3 {[%clk 0:02:44]}  Nge5 {[%clk 0:01:36]} 18. Ng5 {[%clk 0:02:43]}  Nc5 {[%clk 0:01:33]} 19. Be3 {[%clk 0:02:21]}  Ncd3 {[%clk 0:01:03]} 20. Re2 {[%clk 0:02:11]}  h6 {[%clk 0:00:58]} 21. Rd2 {[%clk 0:02:05]}  hxg5 {[%clk 0:00:53]} 22. Bxd3 {[%clk 0:02:06]}  Qc7 {[%clk 0:00:47]} 23. Be4 {[%clk 0:01:54]}  Bb7 {[%clk 0:00:47]} 24. Bxb7 {[%clk 0:01:51]}  Qxb7 {[%clk 0:00:48]} 25. Bd4 {[%clk 0:01:40]}  Qc7 {[%clk 0:00:34]} 26. Na3 {[%clk 0:01:34]}  Rad8 {[%clk 0:00:33]} 27. Qb3 {[%clk 0:01:27]}  Kh7 {[%clk 0:00:25]} 28. Qxe6 {[%clk 0:01:19]}  Rf6 {[%clk 0:00:11]} 29. Qa2 {[%clk 0:01:11]}  Rdf8 {[%clk 0:00:11]} 30. Nc2 {[%clk 0:01:04]}  g4 {[%clk 0:00:11]} 31. Re1 {[%clk 0:00:57]}  gxh3 {[%clk 0:00:11]} 32. Bxe5 {[%clk 0:00:52]}  Qc6 {[%clk 0:00:11]} 33. f3 {[%clk 0:00:45]}  R6f7 {[%clk 0:00:06]} 34. Bxg7 {[%clk 0:00:36]}  Kxg7 {[%clk 0:00:07]} 35. Nd4 {[%clk 0:00:35]}  Qc5 {[%clk 0:00:06]} 36. Kh2 {[%clk 0:00:24]}  Qc7+ {[%clk 0:00:05]} 37. g3 {[%clk 0:00:19]}  Qxc3 {[%clk 0:00:04]} 38. Ne6+ {[%clk 0:00:19]}  Kg8 {[%clk 0:00:03]} 39. f4 {[%clk 0:00:17]}  Rc8 {[%clk 0:00:01]} 40. Ree2 {[%clk 0:00:16]}  Qc6 {[%clk 0:00:01]} 41. Ng5 {[%clk 0:00:14]}  Qb7 {[%clk 0:00:01]} 42. Qxf7+ {[%clk 0:00:13]} 1-0


[Site "https://www.chess.com"]

[Event "Titled Tuesday Blitz May 24 Early 2022"]
[White "Martin, Lewis"]
[Black "Garcia Garcia, Alejandro"]
[WhiteFideId "410551"]
[BlackFideId "3516334"]
[WhiteElo "2145"]
[BlackElo "2142"]
[Result "1/2-1/2"]
[Round "02"]
[TimeControl "180+1"]
[Date "2022.05.25"]
[WhiteClock "0:00:11"]
[BlackClock "0:01:19"]

1. e4 {[%clk 0:03:00]}  c5 {[%clk 0:02:59]} 2. Nf3 {[%clk 0:03:00]}  e6 {[%clk 0:03:00]} 3. d4 {[%clk 0:03:00]}  cxd4 {[%clk 0:03:01]} 4. Nxd4 {[%clk 0:03:01]}  Nf6 {[%clk 0:03:01]} 5. Nc3 {[%clk 0:03:01]}  Nc6 {[%clk 0:03:01]} 6. Ndb5 {[%clk 0:03:01]}  d6 {[%clk 0:03:01]} 7. Bf4 {[%clk 0:02:53]}  e5 {[%clk 0:03:01]} 8. Bg5 {[%clk 0:02:53]}  a6 {[%clk 0:03:02]} 9. Na3 {[%clk 0:02:53]}  b5 {[%clk 0:03:02]} 10. Bxf6 {[%clk 0:02:53]}  gxf6 {[%clk 0:03:02]} 11. Nd5 {[%clk 0:02:53]}  f5 {[%clk 0:03:03]} 12. Bd3 {[%clk 0:02:47]}  Be6 {[%clk 0:03:02]} 13. c4 {[%clk 0:02:41]}  Qa5+ {[%clk 0:02:57]} 14. Qd2 {[%clk 0:02:29]}  Qxd2+ {[%clk 0:02:52]} 15. Kxd2 {[%clk 0:02:30]}  Bh6+ {[%clk 0:02:47]} 16. Kc3 {[%clk 0:02:02]}  Bxd5 {[%clk 0:02:44]} 17. exd5 {[%clk 0:01:55]}  b4+ {[%clk 0:02:42]} 18. Kb3 {[%clk 0:01:54]}  bxa3 {[%clk 0:02:28]} 19. dxc6 {[%clk 0:01:53]}  axb2 {[%clk 0:02:28]} 20. Kxb2 {[%clk 0:01:51]}  e4 {[%clk 0:02:28]} 21. Bc2 {[%clk 0:01:40]}  Bg7+ {[%clk 0:02:28]} 22. Ka3 {[%clk 0:01:41]}  Bxa1 {[%clk 0:02:29]} 23. Rxa1 {[%clk 0:01:41]}  Rb8 {[%clk 0:02:20]} 24. Rd1 {[%clk 0:01:35]}  Ke7 {[%clk 0:02:20]} 25. Rd5 {[%clk 0:01:33]}  Ke6 {[%clk 0:02:17]} 26. f3 {[%clk 0:01:28]}  Rhc8 {[%clk 0:02:13]} 27. fxe4 {[%clk 0:01:27]}  Rxc6 {[%clk 0:02:11]} 28. exf5+ {[%clk 0:01:27]}  Kf6 {[%clk 0:02:11]} 29. Bd3 {[%clk 0:01:19]}  Rc5 {[%clk 0:02:04]} 30. Rxd6+ {[%clk 0:01:17]}  Ke5 {[%clk 0:02:03]} 31. Rxa6 {[%clk 0:01:15]}  Kd4 {[%clk 0:02:00]} 32. Bc2 {[%clk 0:01:07]}  Kxc4 {[%clk 0:01:57]} 33. Bb3+ {[%clk 0:01:06]}  Kc3 {[%clk 0:01:55]} 34. g4 {[%clk 0:01:02]}  Rbb5 {[%clk 0:01:52]} 35. Ka4 {[%clk 0:00:46]}  Rb4+ {[%clk 0:01:52]} 36. Ka3 {[%clk 0:00:46]}  f6 {[%clk 0:01:52]} 37. h3 {[%clk 0:00:37]}  h6 {[%clk 0:01:50]} 38. Ra8 {[%clk 0:00:22]}  Rc7 {[%clk 0:01:48]} 39. Ra6 {[%clk 0:00:21]}  Rbb7 {[%clk 0:01:47]} 40. Ka4 {[%clk 0:00:20]}  Ra7 {[%clk 0:01:48]} 41. Ka5 {[%clk 0:00:20]}  Rxa6+ {[%clk 0:01:46]} 42. Kxa6 {[%clk 0:00:20]}  Kb4 {[%clk 0:01:46]} 43. Be6 {[%clk 0:00:19]}  Rc3 {[%clk 0:01:46]} 44. Kb6 {[%clk 0:00:19]}  Rxh3 {[%clk 0:01:45]} 45. Kc6 {[%clk 0:00:19]}  Rg3 {[%clk 0:01:46]} 46. Kd6 {[%clk 0:00:19]}  Rxg4 {[%clk 0:01:46]} 47. Ke7 {[%clk 0:00:20]}  h5 {[%clk 0:01:45]} 48. Kxf6 {[%clk 0:00:20]}  h4 {[%clk 0:01:46]} 49. Ke5 {[%clk 0:00:20]}  h3 {[%clk 0:01:40]} 50. f6 {[%clk 0:00:20]}  h2 {[%clk 0:01:38]} 51. f7 {[%clk 0:00:19]}  h1=Q {[%clk 0:01:36]} 52. f8=Q+ {[%clk 0:00:19]}  Kc3 {[%clk 0:01:32]} 53. Bxg4 {[%clk 0:00:19]}  Qe1+ {[%clk 0:01:28]} 54. Kf6 {[%clk 0:00:19]}  Qh4+ {[%clk 0:01:28]} 55. Kf7 {[%clk 0:00:16]}  Qxg4 {[%clk 0:01:28]} 56. Qc5+ {[%clk 0:00:13]}  Kb2 {[%clk 0:01:27]} 57. Qb5+ {[%clk 0:00:11]}  Kxa2 {[%clk 0:01:27]} 58. Qd5+ {[%clk 0:00:12]}  Kb2 {[%clk 0:01:27]} 59. Qe6 {[%clk 0:00:11]}  Qh5+ {[%clk 0:01:25]} 60. Ke7 {[%clk 0:00:10]}  Qc5+ {[%clk 0:01:25]} 61. Qd6 {[%clk 0:00:10]}  Qa7+ {[%clk 0:01:25]} 62. Qd7 {[%clk 0:00:11]}  Qe3+ {[%clk 0:01:25]} 63. Qe6 {[%clk 0:00:11]}  Qc5+ {[%clk 0:01:21]} 64. Qd6 {[%clk 0:00:11]}  Qf5 {[%clk 0:01:18]} 65. Qf6+ {[%clk 0:00:10]}  Qxf6+ {[%clk 0:01:19]} 66. Kxf6 {[%clk 0:00:11]} 1/2-1/2


[Site "https://www.chess.com"]

[Event "Titled Tuesday Blitz May 24 Early 2022"]
[White "Martinez Alcantara, Jose Eduardo"]
[Black "Livaic, Leon"]
[WhiteFideId "3805662"]
[BlackFideId "14531534"]
[WhiteElo "2690"]
[BlackElo "2540"]
[Result "1-0"]
[Round "02"]
[TimeControl "180+1"]
[Date "2022.05.24"]
[WhiteClock "0:00:05"]
[BlackClock "0:00:02"]

1. e4 {[%clk 0:03:00]}  c6 {[%clk 0:02:59]} 2. d4 {[%clk 0:02:59]}  d5 {[%clk 0:02:59]} 3. e5 {[%clk 0:03:00]}  Bf5 {[%clk 0:02:58]} 4. h4 {[%clk 0:03:01]}  h6 {[%clk 0:02:55]} 5. g4 {[%clk 0:02:54]}  Bd7 {[%clk 0:02:55]} 6. Nc3 {[%clk 0:02:54]}  Qc8 {[%clk 0:02:54]} 7. f3 {[%clk 0:02:41]}  h5 {[%clk 0:02:47]} 8. g5 {[%clk 0:02:38]}  g6 {[%clk 0:02:45]} 9. Be3 {[%clk 0:02:37]}  Bf5 {[%clk 0:02:45]} 10. Nge2 {[%clk 0:02:37]}  e6 {[%clk 0:02:42]} 11. Ng3 {[%clk 0:02:36]}  Ne7 {[%clk 0:02:43]} 12. Be2 {[%clk 0:02:35]}  Nd7 {[%clk 0:02:42]} 13. Na4 {[%clk 0:02:21]}  b6 {[%clk 0:02:26]} 14. c3 {[%clk 0:02:20]}  c5 {[%clk 0:02:24]} 15. b4 {[%clk 0:02:08]}  cxb4 {[%clk 0:02:16]} 16. Rc1 {[%clk 0:01:59]}  bxc3 {[%clk 0:01:53]} 17. Nxc3 {[%clk 0:02:00]}  Nc6 {[%clk 0:01:46]} 18. Nxf5 {[%clk 0:01:54]}  gxf5 {[%clk 0:01:47]} 19. f4 {[%clk 0:01:52]}  Ba3 {[%clk 0:01:46]} 20. Rb1 {[%clk 0:01:41]}  Bb4 {[%clk 0:01:35]} 21. Qd2 {[%clk 0:01:34]}  Ba5 {[%clk 0:01:27]} 22. Rc1 {[%clk 0:01:34]}  Ne7 {[%clk 0:01:24]} 23. Kf2 {[%clk 0:01:32]}  Ng6 {[%clk 0:01:23]} 24. Qb2 {[%clk 0:01:28]}  Bxc3 {[%clk 0:01:04]} 25. Rxc3 {[%clk 0:01:29]}  Qd8 {[%clk 0:01:05]} 26. Bb5 {[%clk 0:01:16]}  Kf8 {[%clk 0:01:04]} 27. Qb4+ {[%clk 0:01:04]}  Kg7 {[%clk 0:01:04]} 28. Qd6 {[%clk 0:01:05]}  Ndf8 {[%clk 0:00:57]} 29. Kg3 {[%clk 0:00:57]}  Ne7 {[%clk 0:00:49]} 30. Rhc1 {[%clk 0:00:49]}  Nfg6 {[%clk 0:00:48]} 31. Ba6 {[%clk 0:00:42]}  b5 {[%clk 0:00:42]} 32. Qxd8 {[%clk 0:00:41]}  Rhxd8 {[%clk 0:00:43]} 33. Bxb5 {[%clk 0:00:42]}  Rab8 {[%clk 0:00:43]} 34. Be2 {[%clk 0:00:41]}  Rb2 {[%clk 0:00:43]} 35. R1c2 {[%clk 0:00:42]}  Rdb8 {[%clk 0:00:43]} 36. Bc1 {[%clk 0:00:41]}  Rxc2 {[%clk 0:00:43]} 37. Rxc2 {[%clk 0:00:42]}  Rb6 {[%clk 0:00:42]} 38. Bxh5 {[%clk 0:00:40]}  Nc6 {[%clk 0:00:42]} 39. Be3 {[%clk 0:00:38]}  Ra6 {[%clk 0:00:41]} 40. Rc3 {[%clk 0:00:28]}  Na5 {[%clk 0:00:37]} 41. Be2 {[%clk 0:00:26]}  Rb6 {[%clk 0:00:35]} 42. h5 {[%clk 0:00:26]}  Ne7 {[%clk 0:00:35]} 43. Rc7 {[%clk 0:00:23]}  Nac6 {[%clk 0:00:34]} 44. h6+ {[%clk 0:00:20]}  Kg6 {[%clk 0:00:33]} 45. a4 {[%clk 0:00:14]}  a6 {[%clk 0:00:22]} 46. Kh4 {[%clk 0:00:14]}  Rb3 {[%clk 0:00:18]} 47. Bh5+ {[%clk 0:00:15]}  Kh7 {[%clk 0:00:18]} 48. Bf2 {[%clk 0:00:15]}  Kg8 {[%clk 0:00:13]} 49. h7+ {[%clk 0:00:06]}  Kxh7 {[%clk 0:00:13]} 50. Bxf7 {[%clk 0:00:07]}  Kh8 {[%clk 0:00:09]} 51. Bh5 {[%clk 0:00:06]}  Kg7 {[%clk 0:00:06]} 52. Rd7 {[%clk 0:00:06]}  Kf8 {[%clk 0:00:04]} 53. Rd6 {[%clk 0:00:06]}  Rd3 {[%clk 0:00:02]} 54. Rxe6 {[%clk 0:00:06]}  Nxd4 {[%clk 0:00:03]} 55. Rf6+ {[%clk 0:00:07]}  Kg8 {[%clk 0:00:03]} 56. Bxd4 {[%clk 0:00:06]}  Rxd4 {[%clk 0:00:04]} 57. g6 {[%clk 0:00:03]}  Rxf4+ {[%clk 0:00:03]} 58. Kg5 {[%clk 0:00:04]}  Re4 {[%clk 0:00:04]} 59. Re6 {[%clk 0:00:04]}  Nc8 {[%clk 0:00:02]} 60. Kf6 {[%clk 0:00:04]}  Nd6 {[%clk 0:00:02]} 61. Rxd6 {[%clk 0:00:05]} 1-0


[Site "https://www.chess.com"]

[Event "Titled Tuesday Blitz May 24 Early 2022"]
[White "Martinez, Shawn"]
[Black "Stepanencu, Nicodim-Cosmin"]
[WhiteFideId "2039770"]
[BlackFideId "1256220"]
[WhiteElo "2174"]
[BlackElo "1945"]
[Result "0-1"]
[Round "02"]
[TimeControl "180+1"]
[Date "2022.05.25"]
[WhiteClock "0:00:07"]
[BlackClock "0:00:20"]

1. e4 {[%clk 0:03:00]}  d6 {[%clk 0:02:51]} 2. d4 {[%clk 0:03:00]}  Nf6 {[%clk 0:02:51]} 3. Nc3 {[%clk 0:03:00]}  g6 {[%clk 0:02:50]} 4. Bg5 {[%clk 0:02:59]}  Bg7 {[%clk 0:02:49]} 5. Qd2 {[%clk 0:02:59]}  h6 {[%clk 0:02:50]} 6. Bf4 {[%clk 0:02:58]}  g5 {[%clk 0:02:48]} 7. Be3 {[%clk 0:02:57]}  Ng4 {[%clk 0:02:47]} 8. Nf3 {[%clk 0:02:54]}  a6 {[%clk 0:02:44]} 9. h3 {[%clk 0:02:49]}  Nxe3 {[%clk 0:02:43]} 10. fxe3 {[%clk 0:02:50]}  b5 {[%clk 0:02:43]} 11. Bd3 {[%clk 0:02:50]}  Bb7 {[%clk 0:02:43]} 12. Ne2 {[%clk 0:02:47]}  c5 {[%clk 0:02:43]} 13. c3 {[%clk 0:02:47]}  Nd7 {[%clk 0:02:42]} 14. Ng3 {[%clk 0:02:47]}  Nf6 {[%clk 0:02:36]} 15. O-O {[%clk 0:02:40]}  e6 {[%clk 0:02:33]} 16. e5 {[%clk 0:02:36]}  Nd5 {[%clk 0:02:25]} 17. Ne4 {[%clk 0:02:30]}  dxe5 {[%clk 0:02:22]} 18. dxe5 {[%clk 0:02:30]}  O-O {[%clk 0:02:17]} 19. Rad1 {[%clk 0:02:23]}  Qb6 {[%clk 0:02:07]} 20. Bb1 {[%clk 0:02:20]}  Rad8 {[%clk 0:02:02]} 21. Qc2 {[%clk 0:02:00]}  f5 {[%clk 0:01:34]} 22. exf6 {[%clk 0:01:55]}  Nxe3 {[%clk 0:01:35]} 23. Qe2 {[%clk 0:01:47]}  Nxd1 {[%clk 0:01:11]} 24. fxg7 {[%clk 0:01:37]}  Rf4 {[%clk 0:00:57]} 25. Ne5 {[%clk 0:00:58]}  c4+ {[%clk 0:00:46]} 26. Kh2 {[%clk 0:00:57]}  Bxe4 {[%clk 0:00:34]} 27. Rxf4 {[%clk 0:00:38]}  Bxb1 {[%clk 0:00:34]} 28. Qh5 {[%clk 0:00:26]}  Qc7 {[%clk 0:00:25]} 29. Qf7+ {[%clk 0:00:19]}  Qxf7 {[%clk 0:00:24]} 30. Rxf7 {[%clk 0:00:20]}  Rd5 {[%clk 0:00:19]} 31. Rf1 {[%clk 0:00:08]}  Rxe5 {[%clk 0:00:19]} 32. Rxd1 {[%clk 0:00:08]}  Bd3 {[%clk 0:00:20]} 33. b3 {[%clk 0:00:08]}  Kxg7 {[%clk 0:00:20]} 34. bxc4 {[%clk 0:00:08]}  bxc4 {[%clk 0:00:21]} 35. Rd2 {[%clk 0:00:09]}  Re2 {[%clk 0:00:21]} 36. Rd1 {[%clk 0:00:08]}  Be4 {[%clk 0:00:21]} 37. Kg3 {[%clk 0:00:07]}  Rxg2# {[%clk 0:00:20]} 0-1


[Site "https://www.chess.com"]